[Event "Titled Tuesday Blitz May 17 Early 2022"]
[White "Klekowski, Maciej"]
[Black "Kobo, Ori"]
[WhiteFideId "1132717"]
[BlackFideId "2812320"]
[WhiteElo "2476"]
[BlackElo "2420"]
[Result "1-0"]
[Round "07"]
[TimeControl "180+1"]
[Date "2022.05.17"]
[WhiteClock "0:01:33"]
[BlackClock "0:00:06"]

1. c4 {[%clk 0:03:00]}  e5 {[%clk 0:02:57]} 2. Nc3 {[%clk 0:03:00]}  Nf6 {[%clk 0:02:55]} 3. g3 {[%clk 0:03:00]}  d5 {[%clk 0:02:56]} 4. cxd5 {[%clk 0:03:00]}  Nxd5 {[%clk 0:02:56]} 5. Bg2 {[%clk 0:03:01]}  Nxc3 {[%clk 0:02:57]} 6. bxc3 {[%clk 0:03:01]}  Bc5 {[%clk 0:02:58]} 7. Nf3 {[%clk 0:03:01]}  Nc6 {[%clk 0:02:58]} 8. O-O {[%clk 0:03:01]}  O-O {[%clk 0:02:58]} 9. d3 {[%clk 0:03:00]}  Re8 {[%clk 0:02:57]} 10. Nd2 {[%clk 0:03:00]}  Be6 {[%clk 0:02:50]} 11. Qc2 {[%clk 0:02:56]}  Qd7 {[%clk 0:02:49]} 12. Rb1 {[%clk 0:02:56]}  Bb6 {[%clk 0:02:49]} 13. Nc4 {[%clk 0:02:55]}  Bh3 {[%clk 0:02:45]} 14. a4 {[%clk 0:02:40]}  Bxg2 {[%clk 0:02:40]} 15. Kxg2 {[%clk 0:02:41]}  Rab8 {[%clk 0:02:33]} 16. e4 {[%clk 0:02:34]}  h5 {[%clk 0:02:01]} 17. h4 {[%clk 0:02:30]}  Re6 {[%clk 0:01:41]} 18. Rb5 {[%clk 0:02:27]}  a6 {[%clk 0:01:05]} 19. Rd5 {[%clk 0:02:09]}  Qe8 {[%clk 0:00:59]} 20. f4 {[%clk 0:02:08]}  exf4 {[%clk 0:00:56]} 21. Bxf4 {[%clk 0:02:04]}  f6 {[%clk 0:00:38]} 22. Nxb6 {[%clk 0:01:57]}  cxb6 {[%clk 0:00:36]} 23. Bxb8 {[%clk 0:01:58]}  Qxb8 {[%clk 0:00:36]} 24. Rxh5 {[%clk 0:01:57]}  Qe8 {[%clk 0:00:29]} 25. Rhf5 {[%clk 0:01:52]}  Rd6 {[%clk 0:00:23]} 26. d4 {[%clk 0:01:49]}  Ne7 {[%clk 0:00:23]} 27. R5f3 {[%clk 0:01:46]}  Ng6 {[%clk 0:00:21]} 28. h5 {[%clk 0:01:39]}  Nf8 {[%clk 0:00:14]} 29. e5 {[%clk 0:01:39]}  Re6 {[%clk 0:00:15]} 30. h6 {[%clk 0:01:38]}  Ng6 {[%clk 0:00:08]} 31. hxg7 {[%clk 0:01:36]}  Kxg7 {[%clk 0:00:06]} 32. Rxf6 {[%clk 0:01:36]}  Qc6+ {[%clk 0:00:06]} 33. Kh2 {[%clk 0:01:33]} 1-0


[Site "https://www.chess.com"]

[Event "Titled Tuesday Blitz May 17 Early 2022"]
[White "Kucuksari, Kaan"]
[Black "Shipov, Sergei"]
[WhiteFideId "6380166"]
[BlackFideId "4113624"]
[WhiteElo "2305"]
[BlackElo "2774"]
[Result "0-1"]
[Round "07"]
[TimeControl "180+1"]
[Date "2022.05.17"]
[WhiteClock "0:00:02"]
[BlackClock "0:00:38"]

1. d4 {[%clk 0:03:00]}  Nf6 {[%clk 0:02:59]} 2. c4 {[%clk 0:03:01]}  c5 {[%clk 0:02:59]} 3. d5 {[%clk 0:03:01]}  b5 {[%clk 0:03:00]} 4. cxb5 {[%clk 0:03:02]}  a6 {[%clk 0:03:00]} 5. bxa6 {[%clk 0:03:03]}  g6 {[%clk 0:03:01]} 6. Nc3 {[%clk 0:03:04]}  Bg7 {[%clk 0:03:01]} 7. e4 {[%clk 0:03:05]}  d6 {[%clk 0:03:00]} 8. Nf3 {[%clk 0:03:04]}  Qa5 {[%clk 0:02:57]} 9. Bd2 {[%clk 0:03:00]}  O-O {[%clk 0:02:56]} 10. Be2 {[%clk 0:02:50]}  Bxa6 {[%clk 0:02:56]} 11. O-O {[%clk 0:02:49]}  Bxe2 {[%clk 0:02:55]} 12. Qxe2 {[%clk 0:02:50]}  Nbd7 {[%clk 0:02:55]} 13. a4 {[%clk 0:02:36]}  Qb4 {[%clk 0:02:21]} 14. b3 {[%clk 0:02:14]}  Rfb8 {[%clk 0:02:13]} 15. Rfb1 {[%clk 0:02:04]}  Qb6 {[%clk 0:01:53]} 16. h3 {[%clk 0:01:51]}  Ne8 {[%clk 0:01:52]} 17. Ra2 {[%clk 0:01:42]}  Nc7 {[%clk 0:01:52]} 18. Qe1 {[%clk 0:01:07]}  Qa6 {[%clk 0:01:49]} 19. Bg5 {[%clk 0:01:00]}  Qd3 {[%clk 0:01:48]} 20. Bd2 {[%clk 0:00:41]}  Ne5 {[%clk 0:01:40]} 21. Nxe5 {[%clk 0:00:41]}  Bxe5 {[%clk 0:01:41]} 22. Qe2 {[%clk 0:00:35]}  Qxe2 {[%clk 0:01:05]} 23. Nxe2 {[%clk 0:00:36]}  f5 {[%clk 0:01:00]} 24. f3 {[%clk 0:00:24]}  fxe4 {[%clk 0:01:00]} 25. fxe4 {[%clk 0:00:25]}  Ne8 {[%clk 0:01:00]} 26. Bf4 {[%clk 0:00:19]}  Bg7 {[%clk 0:00:59]} 27. Bg5 {[%clk 0:00:18]}  Nf6 {[%clk 0:00:59]} 28. Nc3 {[%clk 0:00:13]}  Rb4 {[%clk 0:00:54]} 29. Re2 {[%clk 0:00:07]}  Rab8 {[%clk 0:00:44]} 30. Bxf6 {[%clk 0:00:07]}  Bxf6 {[%clk 0:00:43]} 31. Nb5 {[%clk 0:00:07]}  c4 {[%clk 0:00:39]} 32. e5 {[%clk 0:00:04]}  Bxe5 {[%clk 0:00:39]} 33. Re4 {[%clk 0:00:04]}  Rxb3 {[%clk 0:00:38]} 34. Rxb3 {[%clk 0:00:05]}  cxb3 {[%clk 0:00:38]} 35. Rb4 {[%clk 0:00:06]}  b2 {[%clk 0:00:39]} 36. a5 {[%clk 0:00:05]}  Rc8 {[%clk 0:00:38]} 37. Na3 {[%clk 0:00:03]}  Rc1+ {[%clk 0:00:38]} 38. Kf2 {[%clk 0:00:03]}  Ra1 {[%clk 0:00:38]} 39. Nc2 {[%clk 0:00:01]}  b1=Q {[%clk 0:00:38]} 40. Rxb1 {[%clk 0:00:02]}  Rxb1 {[%clk 0:00:38]} 0-1


[Site "https://www.chess.com"]

[Event "Titled Tuesday Blitz May 17 Early 2022"]
[White "Nakamura, Hikaru"]
[Black "Neiksans, Arturs"]
[WhiteFideId "2016192"]
[BlackFideId "11601388"]
[WhiteElo "2850"]
[BlackElo "2447"]
[Result "1-0"]
[Round "07"]
[TimeControl "180+1"]
[Date "2022.05.17"]
[WhiteClock "0:00:18"]
[BlackClock "0:00:11"]

1. Nf3 {[%clk 0:03:00]}  f5 {[%clk 0:02:59]} 2. d3 {[%clk 0:02:59]}  Nc6 {[%clk 0:02:59]} 3. d4 {[%clk 0:02:57]}  e6 {[%clk 0:02:59]} 4. c4 {[%clk 0:02:52]}  Nf6 {[%clk 0:02:58]} 5. d5 {[%clk 0:02:51]}  Bb4+ {[%clk 0:02:54]} 6. Bd2 {[%clk 0:02:48]}  exd5 {[%clk 0:02:54]} 7. cxd5 {[%clk 0:02:48]}  Nxd5 {[%clk 0:02:53]} 8. Bxb4 {[%clk 0:02:48]}  Ndxb4 {[%clk 0:02:53]} 9. e3 {[%clk 0:02:46]}  O-O {[%clk 0:02:37]} 10. a3 {[%clk 0:02:46]}  Na6 {[%clk 0:02:37]} 11. b4 {[%clk 0:02:47]}  Qf6 {[%clk 0:02:34]} 12. Ra2 {[%clk 0:02:34]}  Nab8 {[%clk 0:02:33]} 13. Rc2 {[%clk 0:02:28]}  a6 {[%clk 0:02:29]} 14. Nc3 {[%clk 0:02:26]}  Ne7 {[%clk 0:02:22]} 15. Bc4+ {[%clk 0:01:57]}  Kh8 {[%clk 0:02:22]} 16. Ne2 {[%clk 0:01:58]}  c6 {[%clk 0:02:19]} 17. h4 {[%clk 0:01:57]}  d5 {[%clk 0:02:19]} 18. Bb3 {[%clk 0:01:57]}  Nd7 {[%clk 0:02:17]} 19. h5 {[%clk 0:01:57]}  Ng8 {[%clk 0:02:15]} 20. Nf4 {[%clk 0:01:57]}  Ne5 {[%clk 0:02:13]} 21. Nxe5 {[%clk 0:01:41]}  Qxe5 {[%clk 0:02:14]} 22. Qd4 {[%clk 0:01:42]}  Re8 {[%clk 0:02:10]} 23. Qxe5 {[%clk 0:01:38]}  Rxe5 {[%clk 0:02:10]} 24. Kd2 {[%clk 0:01:39]}  Nf6 {[%clk 0:02:03]} 25. a4 {[%clk 0:01:37]}  Bd7 {[%clk 0:01:56]} 26. Kc3 {[%clk 0:01:36]}  Kg8 {[%clk 0:01:53]} 27. Rb2 {[%clk 0:01:34]}  Kf7 {[%clk 0:01:41]} 28. Bc2 {[%clk 0:01:31]}  Re7 {[%clk 0:01:33]} 29. Bd3 {[%clk 0:01:27]}  a5 {[%clk 0:01:25]} 30. bxa5 {[%clk 0:01:23]}  Rxa5 {[%clk 0:01:25]} 31. Rxb7 {[%clk 0:01:23]}  Rxa4 {[%clk 0:01:25]} 32. Rc7 {[%clk 0:01:18]}  Ra3+ {[%clk 0:00:59]} 33. Kb4 {[%clk 0:01:09]}  Ra8 {[%clk 0:00:56]} 34. Rc1 {[%clk 0:01:08]}  Be8 {[%clk 0:00:52]} 35. Rxe7+ {[%clk 0:01:05]}  Kxe7 {[%clk 0:00:53]} 36. Bxf5 {[%clk 0:01:05]}  Kd6 {[%clk 0:00:54]} 37. g4 {[%clk 0:01:05]}  c5+ {[%clk 0:00:49]} 38. Kc3 {[%clk 0:01:05]}  Ra2 {[%clk 0:00:45]} 39. f3 {[%clk 0:00:55]}  Ra3+ {[%clk 0:00:42]} 40. Kd2 {[%clk 0:00:55]}  h6 {[%clk 0:00:39]} 41. Rb1 {[%clk 0:00:54]}  Ra2+ {[%clk 0:00:37]} 42. Ke1 {[%clk 0:00:54]}  c4 {[%clk 0:00:32]} 43. Ne2 {[%clk 0:00:51]}  Ba4 {[%clk 0:00:27]} 44. Nd4 {[%clk 0:00:47]}  Ra3 {[%clk 0:00:24]} 45. Kf2 {[%clk 0:00:41]}  Ng8 {[%clk 0:00:21]} 46. Rb7 {[%clk 0:00:37]}  Ne7 {[%clk 0:00:20]} 47. Bh7 {[%clk 0:00:36]}  Ra2+ {[%clk 0:00:18]} 48. Kg3 {[%clk 0:00:36]}  c3 {[%clk 0:00:19]} 49. Ra7 {[%clk 0:00:34]}  Bb3 {[%clk 0:00:10]} 50. Nb5+ {[%clk 0:00:22]}  Kc5 {[%clk 0:00:09]} 51. Rxa2 {[%clk 0:00:22]}  Bxa2 {[%clk 0:00:09]} 52. Nxc3 {[%clk 0:00:23]}  d4 {[%clk 0:00:10]} 53. Nxa2 {[%clk 0:00:19]}  dxe3 {[%clk 0:00:09]} 54. Nc3 {[%clk 0:00:19]}  Kd4 {[%clk 0:00:09]} 55. Ne2+ {[%clk 0:00:17]}  Ke5 {[%clk 0:00:10]} 56. f4+ {[%clk 0:00:18]}  Kf6 {[%clk 0:00:11]} 57. Kf3 {[%clk 0:00:18]} 1-0


[Site "https://www.chess.com"]

[Event "Titled Tuesday Blitz May 17 Early 2022"]
[White "Preotu, Razvan"]
[Black "Kosteniuk, Alexandra"]
[WhiteFideId "2613280"]
[BlackFideId "4128125"]
[WhiteElo "2407"]
[BlackElo "2469"]
[Result "0-1"]
[Round "07"]
[TimeControl "180+1"]
[Date "2022.05.17"]
[WhiteClock "0:00:08"]
[BlackClock "0:00:45"]

1. e4 {[%clk 0:03:00]}  e5 {[%clk 0:02:55]} 2. Nf3 {[%clk 0:03:00]}  Nc6 {[%clk 0:02:55]} 3. Bc4 {[%clk 0:03:00]}  Bc5 {[%clk 0:02:55]} 4. c3 {[%clk 0:03:00]}  Nf6 {[%clk 0:02:55]} 5. d3 {[%clk 0:03:00]}  O-O {[%clk 0:02:53]} 6. O-O {[%clk 0:03:00]}  d5 {[%clk 0:02:51]} 7. exd5 {[%clk 0:02:59]}  Nxd5 {[%clk 0:02:52]} 8. Re1 {[%clk 0:02:58]}  Bg4 {[%clk 0:02:49]} 9. h3 {[%clk 0:02:57]}  Bh5 {[%clk 0:02:50]} 10. Nbd2 {[%clk 0:02:56]}  Nb6 {[%clk 0:02:45]} 11. Bb3 {[%clk 0:02:55]}  Kh8 {[%clk 0:02:39]} 12. Ne4 {[%clk 0:02:54]}  Be7 {[%clk 0:02:35]} 13. Ng3 {[%clk 0:02:50]}  Bxf3 {[%clk 0:02:35]} 14. Qxf3 {[%clk 0:02:51]}  f5 {[%clk 0:02:20]} 15. Bd2 {[%clk 0:02:16]}  Bg5 {[%clk 0:02:13]} 16. Rad1 {[%clk 0:02:07]}  Bxd2 {[%clk 0:02:12]} 17. Rxd2 {[%clk 0:02:08]}  Qg5 {[%clk 0:02:12]} 18. Rde2 {[%clk 0:02:01]}  Rad8 {[%clk 0:02:06]} 19. Bc2 {[%clk 0:01:55]}  h5 {[%clk 0:01:49]} 20. b4 {[%clk 0:01:27]}  h4 {[%clk 0:01:46]} 21. Nf1 {[%clk 0:01:26]}  e4 {[%clk 0:01:27]} 22. dxe4 {[%clk 0:01:24]}  Ne5 {[%clk 0:01:27]} 23. Qe3 {[%clk 0:01:00]}  f4 {[%clk 0:01:28]} 24. Qc1 {[%clk 0:01:01]}  Nf3+ {[%clk 0:01:21]} 25. Kh1 {[%clk 0:01:02]}  Nxe1 {[%clk 0:01:21]} 26. Rxe1 {[%clk 0:01:02]}  Nc4 {[%clk 0:01:19]} 27. Nh2 {[%clk 0:01:02]}  Ne5 {[%clk 0:01:19]} 28. Rg1 {[%clk 0:00:36]}  Qh5 {[%clk 0:01:12]} 29. Bd1 {[%clk 0:00:34]}  Nd3 {[%clk 0:01:10]} 30. Qc2 {[%clk 0:00:29]}  Qe5 {[%clk 0:01:06]} 31. Bf3 {[%clk 0:00:25]}  c5 {[%clk 0:01:02]} 32. Ng4 {[%clk 0:00:25]}  Qc7 {[%clk 0:00:59]} 33. b5 {[%clk 0:00:19]}  c4 {[%clk 0:00:59]} 34. e5 {[%clk 0:00:11]}  Nxe5 {[%clk 0:00:53]} 35. Nxe5 {[%clk 0:00:12]}  Qxe5 {[%clk 0:00:54]} 36. Bxb7 {[%clk 0:00:12]}  Rd3 {[%clk 0:00:52]} 37. a4 {[%clk 0:00:09]}  Qxc3 {[%clk 0:00:46]} 38. Qe2 {[%clk 0:00:10]}  Rxh3+ {[%clk 0:00:44]} 39. gxh3 {[%clk 0:00:08]}  Qxh3# {[%clk 0:00:45]} 0-1


[Site "https://www.chess.com"]

[Event "Titled Tuesday Blitz May 17 Early 2022"]
[White "Sadhwani, Raunak"]
[Black "Makarian, Rudik"]
[WhiteFideId "35093487"]
[BlackFideId "44105681"]
[WhiteElo "2616"]
[BlackElo "2419"]
[Result "1/2-1/2"]
[Round "07"]
[TimeControl "180+1"]
[Date "2022.05.17"]
[WhiteClock "0:00:12"]
[BlackClock "0:00:03"]

1. e4 {[%clk 0:03:00]}  c5 {[%clk 0:02:57]} 2. Nf3 {[%clk 0:03:01]}  d6 {[%clk 0:02:56]} 3. d4 {[%clk 0:03:01]}  cxd4 {[%clk 0:02:57]} 4. Nxd4 {[%clk 0:03:02]}  Nf6 {[%clk 0:02:58]} 5. Nc3 {[%clk 0:03:03]}  a6 {[%clk 0:02:59]} 6. h3 {[%clk 0:03:02]}  e6 {[%clk 0:02:57]} 7. g4 {[%clk 0:03:02]}  h6 {[%clk 0:02:58]} 8. a3 {[%clk 0:02:57]}  Be7 {[%clk 0:02:57]} 9. h4 {[%clk 0:02:54]}  Nc6 {[%clk 0:02:50]} 10. Be3 {[%clk 0:02:51]}  Nxd4 {[%clk 0:02:49]} 11. Bxd4 {[%clk 0:02:51]}  e5 {[%clk 0:02:49]} 12. Be3 {[%clk 0:02:51]}  Bxg4 {[%clk 0:02:47]} 13. Be2 {[%clk 0:02:50]}  h5 {[%clk 0:02:43]} 14. Bg5 {[%clk 0:02:36]}  Be6 {[%clk 0:02:26]} 15. Qd2 {[%clk 0:02:33]}  Ng4 {[%clk 0:02:14]} 16. f3 {[%clk 0:02:30]}  Nf6 {[%clk 0:02:02]} 17. O-O-O {[%clk 0:02:30]}  Rc8 {[%clk 0:01:58]} 18. Kb1 {[%clk 0:02:30]}  b5 {[%clk 0:01:58]} 19. f4 {[%clk 0:02:27]}  exf4 {[%clk 0:01:56]} 20. Bxf4 {[%clk 0:02:28]}  Ng4 {[%clk 0:01:43]} 21. Nd5 {[%clk 0:02:27]}  Nf2 {[%clk 0:01:21]} 22. Nxe7 {[%clk 0:02:22]}  Qxe7 {[%clk 0:01:21]} 23. Bxd6 {[%clk 0:02:23]}  Nxe4 {[%clk 0:01:20]} 24. Qb4 {[%clk 0:02:09]}  Nxd6 {[%clk 0:01:19]} 25. Qxd6 {[%clk 0:02:10]}  Bf5 {[%clk 0:00:50]} 26. Rhe1 {[%clk 0:00:59]}  Qxd6 {[%clk 0:00:32]} 27. Rxd6 {[%clk 0:00:56]}  O-O {[%clk 0:00:33]} 28. Bxh5 {[%clk 0:00:51]}  Rxc2 {[%clk 0:00:25]} 29. Ka2 {[%clk 0:00:36]}  Rh2 {[%clk 0:00:18]} 30. Rxa6 {[%clk 0:00:28]}  Rxh4 {[%clk 0:00:18]} 31. Bf3 {[%clk 0:00:29]}  Rf4 {[%clk 0:00:17]} 32. Bd5 {[%clk 0:00:29]}  Rd8 {[%clk 0:00:09]} 33. Bb3 {[%clk 0:00:28]}  Rf2 {[%clk 0:00:09]} 34. Rb6 {[%clk 0:00:23]}  Rdd2 {[%clk 0:00:08]} 35. Rb8+ {[%clk 0:00:23]}  Kh7 {[%clk 0:00:08]} 36. Bxf7 {[%clk 0:00:23]}  Rxb2+ {[%clk 0:00:08]} 37. Ka1 {[%clk 0:00:24]}  g5 {[%clk 0:00:07]} 38. Rb7 {[%clk 0:00:16]}  Kh6 {[%clk 0:00:06]} 39. Rh1+ {[%clk 0:00:15]}  Rh2 {[%clk 0:00:03]} 40. Rxh2+ {[%clk 0:00:15]}  Rxh2 {[%clk 0:00:04]} 41. Rxb5 {[%clk 0:00:15]}  Rh1+ {[%clk 0:00:03]} 42. Ka2 {[%clk 0:00:14]}  Be4 {[%clk 0:00:04]} 43. Re5 {[%clk 0:00:12]}  Bf3 {[%clk 0:00:03]} 1/2-1/2


[Site "https://www.chess.com"]

[Event "Titled Tuesday Blitz May 17 Early 2022"]
[White "Salem, A.R. Saleh"]
[Black "Garriga Cazorla, Pere"]
[WhiteFideId "9301348"]
[BlackFideId "32011601"]
[WhiteElo "2679"]
[BlackElo "2433"]
[Result "1/2-1/2"]
[Round "07"]
[TimeControl "180+1"]
[Date "2022.05.17"]
[WhiteClock "0:00:10"]
[BlackClock "0:00:18"]

1. d4 {[%clk 0:03:00]}  Nf6 {[%clk 0:02:59]} 2. c4 {[%clk 0:03:01]}  e6 {[%clk 0:02:59]} 3. Nc3 {[%clk 0:03:01]}  Bb4 {[%clk 0:03:00]} 4. a3 {[%clk 0:03:02]}  Bxc3+ {[%clk 0:02:56]} 5. bxc3 {[%clk 0:03:03]}  d5 {[%clk 0:02:56]} 6. f3 {[%clk 0:03:03]}  c5 {[%clk 0:02:52]} 7. cxd5 {[%clk 0:03:03]}  exd5 {[%clk 0:02:50]} 8. e3 {[%clk 0:03:03]}  Qc7 {[%clk 0:02:51]} 9. Ne2 {[%clk 0:03:01]}  Nc6 {[%clk 0:02:50]} 10. g4 {[%clk 0:03:01]}  Be6 {[%clk 0:02:48]} 11. Nf4 {[%clk 0:02:59]}  O-O-O {[%clk 0:02:48]} 12. Bg2 {[%clk 0:02:56]}  g5 {[%clk 0:02:48]} 13. Nd3 {[%clk 0:02:50]}  c4 {[%clk 0:02:47]} 14. Nf2 {[%clk 0:02:47]}  h5 {[%clk 0:02:46]} 15. h3 {[%clk 0:02:46]}  hxg4 {[%clk 0:02:34]} 16. hxg4 {[%clk 0:02:47]}  Rxh1+ {[%clk 0:02:28]} 17. Bxh1 {[%clk 0:02:47]}  Rh8 {[%clk 0:02:25]} 18. Ke2 {[%clk 0:02:07]}  Qg3 {[%clk 0:02:03]} 19. Bd2 {[%clk 0:02:02]}  Rh2 {[%clk 0:01:52]} 20. Qg1 {[%clk 0:02:02]}  Qh4 {[%clk 0:01:45]} 21. Bg2 {[%clk 0:01:57]}  Na5 {[%clk 0:01:39]} 22. Be1 {[%clk 0:01:57]}  Nb3 {[%clk 0:01:31]} 23. Rd1 {[%clk 0:01:55]}  Qh7 {[%clk 0:01:31]} 24. Kf1 {[%clk 0:01:53]}  Rh6 {[%clk 0:01:24]} 25. Bd2 {[%clk 0:01:00]}  Qc2 {[%clk 0:00:54]} 26. Ke2 {[%clk 0:00:59]}  Rh4 {[%clk 0:00:42]} 27. Qe1 {[%clk 0:00:49]}  Nh7 {[%clk 0:00:34]} 28. Kf1 {[%clk 0:00:49]}  f5 {[%clk 0:00:32]} 29. gxf5 {[%clk 0:00:49]}  Bxf5 {[%clk 0:00:32]} 30. Kg1 {[%clk 0:00:48]}  g4 {[%clk 0:00:31]} 31. e4 {[%clk 0:00:31]}  Bd7 {[%clk 0:00:25]} 32. Be3 {[%clk 0:00:20]}  gxf3 {[%clk 0:00:23]} 33. Bxf3 {[%clk 0:00:21]}  Nf6 {[%clk 0:00:20]} 34. Bg5 {[%clk 0:00:18]}  Rxe4 {[%clk 0:00:20]} 35. Nxe4 {[%clk 0:00:18]}  Nxe4 {[%clk 0:00:21]} 36. Bxe4 {[%clk 0:00:15]}  dxe4 {[%clk 0:00:21]} 37. Qf1 {[%clk 0:00:11]}  Kc7 {[%clk 0:00:18]} 38. Qf4+ {[%clk 0:00:06]}  Kb6 {[%clk 0:00:18]} 39. Qd6+ {[%clk 0:00:06]}  Bc6 {[%clk 0:00:19]} 40. Rf1 {[%clk 0:00:06]}  Qxc3 {[%clk 0:00:18]} 41. d5 {[%clk 0:00:04]}  Qd4+ {[%clk 0:00:18]} 42. Kg2 {[%clk 0:00:04]}  Qxd5 {[%clk 0:00:19]} 43. Qxd5 {[%clk 0:00:02]}  Bxd5 {[%clk 0:00:20]} 44. Be3+ {[%clk 0:00:03]}  Kb5 {[%clk 0:00:20]} 45. Rf5 {[%clk 0:00:03]}  Kc6 {[%clk 0:00:19]} 46. Rf6+ {[%clk 0:00:04]}  Kb5 {[%clk 0:00:20]} 47. Rf5 {[%clk 0:00:05]}  Kc6 {[%clk 0:00:20]} 48. Rf6+ {[%clk 0:00:05]}  Kd7 {[%clk 0:00:20]} 49. Bf4 {[%clk 0:00:05]}  Be6 {[%clk 0:00:20]} 50. Kf2 {[%clk 0:00:04]}  c3 {[%clk 0:00:20]} 51. Rh6 {[%clk 0:00:04]}  c2 {[%clk 0:00:20]} 52. Rh7+ {[%clk 0:00:04]}  Kc6 {[%clk 0:00:20]} 53. Rc7+ {[%clk 0:00:05]}  Kb5 {[%clk 0:00:20]} 54. Rxc2 {[%clk 0:00:06]}  Bc4 {[%clk 0:00:19]} 55. Ke3 {[%clk 0:00:06]}  Bd3 {[%clk 0:00:19]} 56. Rc7 {[%clk 0:00:06]}  Nc5 {[%clk 0:00:18]} 57. Bd6 {[%clk 0:00:05]}  b6 {[%clk 0:00:17]} 58. Bxc5 {[%clk 0:00:06]}  bxc5 {[%clk 0:00:18]} 59. Rxa7 {[%clk 0:00:06]}  Kc4 {[%clk 0:00:18]} 60. Kd2 {[%clk 0:00:07]}  Kb3 {[%clk 0:00:19]} 61. Rc7 {[%clk 0:00:05]}  c4 {[%clk 0:00:19]} 62. a4 {[%clk 0:00:05]}  Kxa4 {[%clk 0:00:19]} 63. Kc3 {[%clk 0:00:05]}  Kb5 {[%clk 0:00:20]} 64. Re7 {[%clk 0:00:06]}  Kc5 {[%clk 0:00:20]} 65. Re5+ {[%clk 0:00:06]}  Kd6 {[%clk 0:00:20]} 66. Kd4 {[%clk 0:00:07]}  c3 {[%clk 0:00:19]} 67. Rd5+ {[%clk 0:00:08]}  Ke6 {[%clk 0:00:19]} 68. Re5+ {[%clk 0:00:08]}  Kf6 {[%clk 0:00:19]} 69. Rc5 {[%clk 0:00:09]}  c2 {[%clk 0:00:20]} 70. Ke3 {[%clk 0:00:10]}  Ke6 {[%clk 0:00:20]} 71. Kd4 {[%clk 0:00:10]}  Kd6 {[%clk 0:00:20]} 72. Rd5+ {[%clk 0:00:10]}  Ke6 {[%clk 0:00:20]} 73. Re5+ {[%clk 0:00:10]}  Kd6 {[%clk 0:00:20]} 74. Rd5+ {[%clk 0:00:11]}  Kc6 {[%clk 0:00:20]} 75. Rc5+ {[%clk 0:00:11]}  Kb6 {[%clk 0:00:21]} 76. Rc8 {[%clk 0:00:11]}  Kb5 {[%clk 0:00:21]} 77. Ke3 {[%clk 0:00:11]}  Kb4 {[%clk 0:00:21]} 78. Kd2 {[%clk 0:00:12]}  Kb5 {[%clk 0:00:21]} 79. Ke3 {[%clk 0:00:12]}  Kb4 {[%clk 0:00:21]} 80. Kd2 {[%clk 0:00:13]}  Kb3 {[%clk 0:00:22]} 81. Ke3 {[%clk 0:00:13]}  Bc4 {[%clk 0:00:21]} 82. Kd2 {[%clk 0:00:13]}  e3+ {[%clk 0:00:21]} 83. Kc1 {[%clk 0:00:13]}  Kc3 {[%clk 0:00:21]} 84. Re8 {[%clk 0:00:11]}  e2 {[%clk 0:00:21]} 85. Rxe2 {[%clk 0:00:10]}  Bxe2 {[%clk 0:00:18]} 1/2-1/2


[Site "https://www.chess.com"]

[Event "Titled Tuesday Blitz May 17 Early 2022"]
[White "Sarana, Alexey"]
[Black "Meshkovs, Nikita"]
[WhiteFideId "24133795"]
[BlackFideId "11602740"]
[WhiteElo "2666"]
[BlackElo "2506"]
[Result "1-0"]
[Round "07"]
[TimeControl "180+1"]
[Date "2022.05.17"]
[WhiteClock "0:00:08"]
[BlackClock "0:00:02"]

1. d4 {[%clk 0:02:59]}  Nf6 {[%clk 0:03:00]} 2. c4 {[%clk 0:03:00]}  e6 {[%clk 0:03:00]} 3. Nc3 {[%clk 0:03:01]}  Bb4 {[%clk 0:02:59]} 4. e3 {[%clk 0:03:01]}  c5 {[%clk 0:02:57]} 5. Bd3 {[%clk 0:02:59]}  Nc6 {[%clk 0:02:55]} 6. Ne2 {[%clk 0:02:58]}  cxd4 {[%clk 0:02:56]} 7. exd4 {[%clk 0:02:58]}  d5 {[%clk 0:02:56]} 8. cxd5 {[%clk 0:02:58]}  Qxd5 {[%clk 0:02:57]} 9. O-O {[%clk 0:02:57]}  Qh5 {[%clk 0:02:57]} 10. a3 {[%clk 0:02:54]}  Bd6 {[%clk 0:02:55]} 11. h3 {[%clk 0:02:54]}  O-O {[%clk 0:02:53]} 12. Re1 {[%clk 0:02:46]}  Rd8 {[%clk 0:02:51]} 13. Be3 {[%clk 0:02:44]}  a6 {[%clk 0:02:45]} 14. Qc2 {[%clk 0:02:43]}  Bd7 {[%clk 0:02:35]} 15. Ne4 {[%clk 0:02:41]}  Nxe4 {[%clk 0:02:29]} 16. Bxe4 {[%clk 0:02:42]}  Rac8 {[%clk 0:02:29]} 17. Qd3 {[%clk 0:02:38]}  h6 {[%clk 0:02:24]} 18. Rad1 {[%clk 0:02:27]}  Ne7 {[%clk 0:02:22]} 19. Bxb7 {[%clk 0:02:15]}  Rb8 {[%clk 0:02:05]} 20. Bf3 {[%clk 0:02:11]}  Qa5 {[%clk 0:02:02]} 21. b4 {[%clk 0:02:12]}  Qb5 {[%clk 0:01:43]} 22. Nc3 {[%clk 0:02:07]}  Qxd3 {[%clk 0:01:43]} 23. Rxd3 {[%clk 0:02:08]}  f5 {[%clk 0:01:26]} 24. Bd2 {[%clk 0:01:47]}  Kf7 {[%clk 0:01:25]} 25. Bh5+ {[%clk 0:01:42]}  g6 {[%clk 0:01:25]} 26. Bd1 {[%clk 0:01:41]}  g5 {[%clk 0:01:16]} 27. g4 {[%clk 0:01:20]}  Kf6 {[%clk 0:01:11]} 28. gxf5 {[%clk 0:01:18]}  exf5 {[%clk 0:01:09]} 29. Rde3 {[%clk 0:01:18]}  Ng6 {[%clk 0:01:00]} 30. Nd5+ {[%clk 0:01:14]}  Kg7 {[%clk 0:01:00]} 31. Bh5 {[%clk 0:01:10]}  Bc6 {[%clk 0:00:51]} 32. Bxg6 {[%clk 0:01:09]}  Kxg6 {[%clk 0:00:46]} 33. Re6+ {[%clk 0:01:08]}  Kf7 {[%clk 0:00:34]} 34. Nf6 {[%clk 0:00:24]}  Bf3 {[%clk 0:00:27]} 35. d5 {[%clk 0:00:23]}  Rbc8 {[%clk 0:00:25]} 36. Nh7 {[%clk 0:00:19]}  Rc2 {[%clk 0:00:21]} 37. Rxh6 {[%clk 0:00:15]}  g4 {[%clk 0:00:06]} 38. Ng5+ {[%clk 0:00:12]}  Kg7 {[%clk 0:00:06]} 39. Ne6+ {[%clk 0:00:13]}  Kg8 {[%clk 0:00:04]} 40. Nxd8 {[%clk 0:00:13]}  Bf8 {[%clk 0:00:02]} 41. Re8 {[%clk 0:00:07]}  Rxd2 {[%clk 0:00:01]} 42. Rf6 {[%clk 0:00:08]}  Kg7 {[%clk 0:00:01]} 43. Rexf8 {[%clk 0:00:07]}  gxh3 {[%clk 0:00:01]} 44. Ne6+ {[%clk 0:00:07]}  Kh7 {[%clk 0:00:01]} 45. R8f7+ {[%clk 0:00:07]}  Kg8 {[%clk 0:00:01]} 46. Rg7+ {[%clk 0:00:07]}  Kh8 {[%clk 0:00:02]} 47. Rf8# {[%clk 0:00:08]} 1-0


[Site "https://www.chess.com"]